bitfinex/quotes_BTCUSD_20250213
["timestamp","ask_amount","ask_price","bid_price","bid_amount"]
[1739448021095,0.160769,96043.0,96042.0,0.0833]
[1739448021502,0.004589,96043.0,96042.0,0.0863]
[1739448021708,0.0001065,96055.0,96042.0,0.0833]
[1739448022087,0.0001065,96055.0,96042.0,0.23948]
[1739448022359,0.156166,96052.0,96042.0,0.0833]
[1739448022508,0.156167,96051.0,96045.0,0.156175]
[1739448022703,0.00458798,96051.0,96042.0,0.0833]
[1739448022907,0.156193,96035.0,96034.0,0.0827]
[1739448023148,0.156194,96034.0,96033.0,0.00022365]
[1739448023759,0.16077315,96034.0,96033.0,0.00022365]
[1739448024629,0.16277315,96034.0,96033.0,0.00022365]
[1739448024754,0.00657915,96034.0,96033.0,0.00122365]
[1739448024959,0.00657915,96034.0,96033.0,0.15741965]
[1739448025202,0.002,96034.0,96033.0,0.00122365]
[1739448025967,0.00656948,96034.0,96033.0,0.00122365]
[1739448026167,0.002,96034.0,96033.0,0.00122365]
[1739448026416,0.00656945,96034.0,96033.0,0.15741965]
[1739448026631,0.002,96034.0,96033.0,0.15741965]
[1739448026832,0.00656945,96034.0,96033.0,0.28481965]
[1739448027040,0.002,96034.0,96033.0,0.28481965]
[1739448027656,0.002,96034.0,96033.0,0.28381965]
[1739448027809,0.002,96034.0,96033.0,0.28781965]
[1739448028013,0.15618,96043.0,96033.0,0.13162365]
[1739448028419,0.00455931,96042.0,96033.0,0.13162365]
[1739448028616,0.00455931,96042.0,96040.0,0.156183]
[1739448028814,0.00455931,96042.0,96033.0,0.13162365]
[1739448028815,0.0928769,96052.0,96034.0,0.208259]
[1739448029013,0.1571549,96053.0,96050.0,0.0817]
[1739448029212,0.00457359,96051.0,96050.0,0.0817]
[1739448029534,0.00457327,96051.0,96050.0,0.0817]
[1739448030203,0.156164,96053.0,96050.0,0.0817]
[1739448030404,0.00657345,96051.0,96050.0,0.0817]
[1739448030603,0.002,96051.0,96050.0,0.0817]
[1739448031140,0.00457345,96051.0,96050.0,0.0817]
[1739448031925,0.16074045,96051.0,96050.0,0.0817]
[1739448032271,0.16074045,96051.0,96050.0,0.0827]
[1739448032753,0.16074045,96051.0,96050.0,0.001]
[1739448033399,0.16274045,96051.0,96050.0,0.001]
[1739448033607,0.2652441,96051.0,96050.0,0.001]
[1739448034213,0.2632441,96051.0,96050.0,0.001]
[1739448034414,0.156194,96034.0,96033.0,0.00022365]
[1739448034711,0.16076845,96034.0,96033.0,0.00022365]
[1739448036193,0.16276845,96034.0,96033.0,0.00022365]
[1739448037121,0.16276845,96034.0,96033.0,0.00122365]
[1739448038634,0.2652721,96034.0,96033.0,0.00122365]
[1739448039415,0.26069765,96034.0,96033.0,0.00122365]
[1739448039602,0.25869765,96034.0,96033.0,0.00122365]
[1739448039999,0.28769765,96034.0,96033.0,0.00222365]
[1739448040410,0.28169765,96034.0,96033.0,0.00122365]
[1739448040826,0.28769765,96034.0,96033.0,0.00222365]
[1739448041178,0.43769765,96034.0,96033.0,0.00122365]
[1739448042721,0.45823063,96034.0,96033.0,0.00122365]
[1739448043329,0.77243063,96034.0,96033.0,0.00122365]
[1739448043504,0.76643063,96034.0,96033.0,0.00022365]
[1739448043890,0.77343063,96034.0,96033.0,0.00022365]
[1739448044522,0.77543063,96034.0,96033.0,0.00022365]
[1739448044729,0.84591374,96034.0,96033.0,0.00022365]
[1739448044936,0.173,96033.0,96008.0,0.08284559]
[1739448045134,0.156235,96009.0,96008.0,0.08284559]
[1739448045591,0.156236,96008.0,96007.0,0.075]
[1739448046315,0.156241,96005.0,96002.0,0.00022365]
[1739448048702,0.159241,96005.0,96002.0,0.00022365]
[1739448049858,0.17707716,96005.0,96002.0,0.00022365]
[1739448050995,0.159241,96005.0,96002.0,0.00022365]
[1739448055677,0.26174465,96005.0,96002.0,0.00022365]
[1739448057929,0.25874465,96005.0,96002.0,0.00022365]
[1739448058134,0.26374465,96005.0,96002.0,0.00022365]
[1739448058465,0.58294465,96005.0,96002.0,0.00022365]
[1739448058632,0.57894465,96005.0,96002.0,0.00022365]
[1739448058828,0.57994465,96005.0,96002.0,0.00022365]
[1739448059236,0.58394465,96005.0,96002.0,0.00022365]
[1739448059868,1.10842065,96005.0,96002.0,0.00022365]
[1739448061188,1.005917,96005.0,96002.0,0.00022365]
[1739448061822,0.849676,96005.0,96004.0,0.12962365]
[1739448062421,1.005917,96005.0,96004.0,0.12962365]
[1739448063395,1.004917,96005.0,96004.0,0.12962365]
[1739448063797,1.000917,96005.0,96004.0,0.12962365]
[1739448064117,1.003917,96005.0,96004.0,0.12962365]
[1739448064275,0.683717,96005.0,96004.0,0.12962365]
[1739448064477,0.684717,96005.0,96004.0,0.12962365]
[1739448064685,0.681717,96005.0,96004.0,0.12962365]
[1739448064899,0.684717,96005.0,96004.0,0.12962365]
[1739448065340,0.683717,96005.0,96004.0,0.12962365]
[1739448065846,0.683717,96005.0,96004.0,0.00022365]
[1739448066406,0.78622065,96005.0,96004.0,0.00022365]
[1739448067214,0.8887243,96005.0,96004.0,0.00022365]
[1739448067442,0.156274,95985.0,95984.0,0.07861157]
[1739448067672,0.15629,95975.0,95974.0,0.08322194]
[1739448068040,0.156295,95972.0,95959.0,0.00022365]
[1739448068524,0.156292,95975.0,95960.0,0.156314]
[1739448068717,0.156292,95975.0,95961.0,0.156311]
[1739448068718,0.15629,95975.0,95961.0,0.156311]
[1739448068922,0.208363,95987.0,95961.0,0.156311]
[1739448068923,0.0009819,95991.0,95971.0,0.00066479]
[1739448069126,0.10348555,95991.0,95971.0,0.00066479]
[1739448069343,0.0009819,95991.0,95971.0,0.00066479]
[1739448069644,0.156272,95987.0,95972.0,0.156295]
[1739448069854,0.0009819,95991.0,95971.0,0.00766479]
[1739448070080,0.0009819,95991.0,95977.0,0.156286]
[1739448070258,0.023,96004.0,95971.0,0.00766479]
[1739448070461,0.156274,95986.0,95973.0,0.0791]
[1739448070694,0.156277,95984.0,95973.0,0.0791]
[1739448070867,0.208328,96002.0,95973.0,0.0791]
[1739448071103,0.156279,95983.0,95973.0,0.0791]
[1739448071312,0.156282,95981.0,95973.0,0.0791]
[1739448071735,0.11668943,96000.0,95973.0,0.0791]
[1739448071946,0.156286,95978.0,95973.0,0.0821]
[1739448072365,0.208339,95997.0,95973.0,0.0791]
[1739448072569,0.156279,95982.0,95973.0,0.0831]
[1739448072789,0.10250365,95996.0,95973.0,0.0831]
[1739448073010,0.156274,95985.0,95973.0,0.0791]
[1739448073186,0.732799,96005.0,95981.0,0.082]
[1739448073401,0.10349965,96003.0,95981.0,0.082]
[1739448073605,0.156257,95996.0,95982.0,0.238279]
[1739448073768,0.208335,95999.0,95982.0,0.082]
[1739448074835,0.156266,95990.0,95982.0,0.082]
[1739448076029,0.208335,95999.0,95982.0,0.082]
[1739448076030,0.002,95999.0,95982.0,0.082]
[1739448076228,0.156264,95991.0,95983.0,0.0108]
[1739448076384,0.156264,95991.0,95982.0,0.082]
[1739448076809,0.156267,95990.0,95982.0,0.082]
[1739448077010,0.161267,95990.0,95982.0,0.082]
[1739448077431,0.157267,95990.0,95982.0,0.082]
[1739448077630,0.001,95990.0,95982.0,0.082]
[1739448077831,0.001,95990.0,95983.0,0.01076]
[1739448078446,0.157267,95990.0,95983.0,0.01076]
[1739448078645,0.162267,95990.0,95982.0,0.082]
[1739448078865,0.006,95990.0,95982.0,0.082]
[1739448079101,0.006,95990.0,95983.0,0.01088]
[1739448079308,0.005,95990.0,95984.0,0.0774]
[1739448080006,0.208347,95994.0,95984.0,0.0774]
[1739448080229,0.156272,95987.0,95984.0,0.0774]
[1739448081088,0.208314,96009.0,95984.0,0.0774]
[1739448081289,0.208314,96009.0,95973.0,0.1027273]
[1739448081290,0.008,95994.0,95986.0,0.0812]
[1739448081494,0.008,95994.0,95993.0,0.0812]
[1739448081668,0.002,95994.0,95993.0,0.0812]
[1739448082304,0.15625,96000.0,95993.0,0.0812]
[1739448082511,0.002,95994.0,95993.0,0.0812]
[1739448082731,0.002,95994.0,95993.0,0.092]
[1739448083530,0.003,95994.0,95993.0,0.092]
[1739448083820,0.001,95994.0,95993.0,0.092]
[1739448084017,0.001,95994.0,95993.0,0.093]
[1739448088690,0.001,95994.0,95993.0,0.249261]
[1739448088987,0.001,95994.0,95993.0,0.238461]
[1739448090221,0.000996,96003.0,95998.0,0.156252]
[1739448090433,0.000996,96003.0,95999.0,0.0776]
[1739448090596,0.680718,96005.0,95999.0,0.0776]
[1739448090795,0.156243,96004.0,95999.0,0.0776]
[1739448091040,0.156245,96003.0,95999.0,0.0776]
[1739448091242,0.524476,96005.0,95999.0,0.0776]
[1739448091797,0.156246,96002.0,95999.0,0.0796]
[1739448092388,0.524476,96005.0,95999.0,0.0796]
[1739448092592,0.15625,96000.0,95999.0,0.0796]
[1739448092950,0.15625,96000.0,95999.0,0.0776]
[1739448093369,0.156248,96002.0,95999.0,0.0796]
[1739448093581,0.156243,96004.0,95999.0,0.0776]
[1739448093834,0.524476,96005.0,95999.0,0.0776]
[1739448093970,0.524476,96005.0,95999.0,0.0786]
[1739448094340,0.001,96000.0,95999.0,0.0776]
[1739448094477,0.001,96000.0,95999.0,0.08812]
[1739448095530,0.156246,96002.0,95999.0,0.08812]
[1739448095758,0.156246,96002.0,95999.0,0.0776]
[1739448096368,0.524476,96005.0,95999.0,0.0776]
[1739448096749,0.524476,96005.0,95999.0,0.233851]
[1739448096903,0.524476,96005.0,95999.0,0.0776]
[1739448097108,0.524476,96005.0,95999.0,0.0806]
[1739448097307,0.15625,96000.0,95999.0,0.0806]
[1739448097525,0.15625,96000.0,95999.0,0.0776]
[1739448097926,0.15625,96000.0,95999.0,0.0786]
[1739448098510,0.15625,96000.0,95999.0,0.0776]
[1739448099352,0.15625,96000.0,95999.0,0.0786]
[1739448099976,0.15825,96000.0,95999.0,0.0786]
[1739448100722,0.15625,96000.0,95999.0,0.0786]
[1739448100924,0.524476,96005.0,95999.0,0.0776]
[1739448101131,0.524476,96005.0,96000.0,0.156249]
[1739448101337,0.524476,96005.0,95999.0,0.0776]
[1739448101338,0.524476,96005.0,95999.0,0.23485]
[1739448101541,0.524476,96005.0,95999.0,0.0786]
[1739448101967,0.524476,96005.0,96004.0,0.233943]
[1739448102180,0.524476,96005.0,96004.0,0.33644665]
[1739448102356,0.52458158,96005.0,96004.0,0.38544665]
[1739448102584,0.52458158,96005.0,96004.0,0.55142111]
[1739448102992,0.52468818,96005.0,96004.0,0.55142111]
[1739448103195,0.52468818,96005.0,96004.0,0.53544665]
[1739448104575,0.37013894,96005.0,96004.0,0.53944665]
[1739448104857,0.37013894,96005.0,96004.0,0.55546173]
[1739448105340,0.37013894,96005.0,96004.0,0.55146173]
[1739448105635,0.37013894,96005.0,96004.0,1.59065069]
[1739448105885,0.29203894,96005.0,96004.0,1.60865069]
[1739448106145,0.16393894,96005.0,96004.0,1.62865069]
[1739448106391,0.16493894,96005.0,96004.0,1.62865069]
[1739448107405,0.16393894,96005.0,96004.0,1.63565069]
[1739448107641,0.16393894,96005.0,96004.0,1.62865069]
[1739448108139,0.16393894,96005.0,96004.0,1.63565069]
[1739448108617,0.16493894,96005.0,96004.0,1.63765069]
[1739448111800,0.16493894,96005.0,96004.0,1.95935069]
[1739448112422,0.16393894,96005.0,96004.0,1.95735069]
[1739448112840,0.16493894,96005.0,96004.0,1.95935069]
[1739448113898,0.16493894,96005.0,96004.0,1.95235069]
[1739448114038,0.16493894,96005.0,96004.0,1.95935069]
[1739448114374,0.16493894,96005.0,96004.0,1.95235069]
[1739448114736,0.16393894,96005.0,96004.0,1.95735069]
[1739448114940,0.16493894,96005.0,96004.0,1.95735069]
[1739448115139,0.16493894,96005.0,96004.0,1.95757434]
[1739448115348,0.16493894,96005.0,96004.0,1.96457434]
[1739448115549,0.16493894,96005.0,96004.0,1.95757434]
[1739448115958,0.16393894,96005.0,96004.0,1.95057434]
[1739448116260,0.16393894,96005.0,96004.0,1.95757434]
[1739448117002,0.16393894,96005.0,96004.0,1.96457434]
[1739448117207,0.16393894,96005.0,96004.0,1.95757434]
[1739448117409,0.16393894,96005.0,96004.0,1.96457434]
[1739448117605,0.16393894,96005.0,96004.0,1.95757434]
[1739448118059,0.16493894,96005.0,96004.0,1.95757434]
[1739448118260,0.16493894,96005.0,96004.0,1.96457434]
[1739448118504,0.16393894,96005.0,96004.0,1.95757434]
[1739448118687,0.16493894,96005.0,96004.0,1.95757434]
[1739448119288,0.16393894,96005.0,96004.0,1.95057434]
[1739448119690,0.0001065,96054.0,96019.0,0.01]
[1739448119891,0.0001065,96054.0,96051.0,0.156167]
[1739448120352,0.0001065,96054.0,96053.0,0.156163]
[1739448120850,0.0001065,96054.0,96053.0,0.25970768]
[1739448121083,0.0001065,96054.0,96053.0,0.27492524]
[1739448121262,0.0002121,96054.0,96053.0,0.25866665]
[1739448121682,0.0002121,96054.0,96053.0,0.26166665]
[1739448121882,0.0002121,96054.0,96053.0,0.25866665]
[1739448122450,0.0002121,96054.0,96053.0,0.26566665]
[1739448122711,0.0002121,96054.0,96053.0,0.11350365]
[1739448122955,0.0002121,96054.0,96053.0,0.011]
[1739448124174,0.0002121,96054.0,96052.0,0.156165]
[1739448124427,0.0002121,96054.0,96053.0,0.007]
[1739448124679,0.0002121,96054.0,96053.0,0.011]
[1739448125093,0.0002121,96054.0,96053.0,0.007]
[1739448125321,0.0002121,96054.0,96053.0,0.156163]
[1739448126087,0.0002121,96054.0,96053.0,0.25866665]
[1739448127162,0.0002121,96054.0,96053.0,0.26566665]
[1739448127362,0.0002121,96054.0,96053.0,0.34256665]
[1739448128105,0.0002121,96054.0,96053.0,0.54366665]
[1739448128522,0.0002121,96054.0,96053.0,0.55566665]
[1739448128704,0.0002121,96054.0,96053.0,0.55966665]
[1739448128951,0.0002121,96054.0,96053.0,0.56666665]
[1739448129607,0.0002121,96054.0,96053.0,0.56266665]
[1739448129810,0.0002121,96054.0,96053.0,0.56966665]
[1739448130489,0.0002121,96054.0,96053.0,0.56266665]
[1739448130693,0.0002121,96054.0,96053.0,0.59036545]
[1739448131048,0.0002121,96054.0,96053.0,0.57636545]
[1739448131250,0.0002121,96054.0,96053.0,0.58336545]
[1739448131479,0.0002121,96054.0,96053.0,0.59036545]
[1739448134203,0.0002121,96054.0,96053.0,0.56736545]
[1739448135298,0.0002121,96054.0,96053.0,0.54666665]
[1739448137029,0.0002121,96054.0,96053.0,1.58087561]
[1739448137225,0.0002121,96054.0,96053.0,1.60387561]
[1739448138367,0.0002121,96054.0,96053.0,1.93557561]
[1739448138569,0.0002121,96054.0,96053.0,1.94557561]
[1739448138894,0.0002121,96054.0,96053.0,1.93857561]
[1739448139114,0.0002121,96054.0,96053.0,1.93157561]
[1739448139316,0.0002121,96054.0,96053.0,1.96393551]
[1739448139520,0.0002121,96054.0,96053.0,1.93857561]
[1739448140276,0.0002121,96054.0,96053.0,1.97793908]
[1739448140484,0.0002121,96054.0,96053.0,1.94557561]
[1739448142389,0.0002121,96054.0,96053.0,1.97794057]
[1739448142903,0.0002121,96054.0,96053.0,1.94557561]
[1739448143224,0.0002121,96054.0,96053.0,1.97793978]
[1739448149610,0.0002121,96054.0,96053.0,1.97093978]
[1739448149822,0.0002121,96054.0,96053.0,1.97793978]
[1739448150409,0.0002121,96054.0,96053.0,1.97093978]
[1739448151031,0.0002121,96054.0,96053.0,1.97793978]
[1739448151484,0.0002121,96054.0,96053.0,1.97093978]
[1739448151671,0.0002121,96054.0,96053.0,1.97793978]
[1739448151829,0.0002121,96054.0,96053.0,1.97093978]
[1739448152029,0.0002121,96054.0,96053.0,1.96393978]
[1739448152234,0.0002121,96054.0,96053.0,1.97093978]
[1739448152804,0.0002121,96054.0,96053.0,1.96393978]
[1739448153187,0.0002121,96054.0,96053.0,1.97093978]
[1739448153537,0.0002121,96054.0,96053.0,1.95393978]
[1739448153764,0.0002121,96054.0,96053.0,1.90683978]
[1739448153967,0.0002121,96054.0,96053.0,0.76973082]
[1739448154171,0.0002121,96054.0,96053.0,0.77673082]
[1739448154519,0.0002121,96054.0,96053.0,0.76973082]
[1739448154719,0.0002121,96054.0,96053.0,0.77673082]
[1739448155867,0.0002121,96054.0,96053.0,0.79973082]
[1739448156306,0.0002121,96054.0,96053.0,0.80973082]
[1739448156533,0.0002121,96054.0,96053.0,0.81973082]
[1739448158816,0.0002121,96054.0,96053.0,0.89523082]
[1739448159024,1e-07,96054.0,96053.0,0.94513082]
[1739448159659,0.0001066,96058.0,96053.0,0.94513082]
[1739448159660,0.0001066,96058.0,96057.0,0.349157]
[1739448159866,0.0001066,96058.0,96057.0,1.59601378]
[1739448161061,0.0001066,96058.0,96057.0,1.60301378]
[1739448161230,0.0001066,96058.0,96057.0,1.61001378]
[1739448165048,0.0013838,96089.0,96057.0,1.61001378]
[1739448165049,0.0013838,96089.0,96088.0,0.306106]
[1739448165226,0.00148935,96089.0,96088.0,1.46579861]
[1739448165432,0.00050555,96089.0,96088.0,0.25250365]
[1739448165633,0.00050555,96089.0,96088.0,0.40860965]
[1739448165833,0.048,96088.0,96064.0,1.03418896]
[1739448166086,0.15611,96086.0,96077.0,0.156123]
[1739448166448,0.0048167,96085.0,96080.0,0.156119]
[1739448166658,0.0048167,96085.0,96061.0,0.15]
[1739448166866,0.048,96088.0,96062.0,0.03246341]
[1739448167068,0.00481669,96084.0,96081.0,0.156116]
[1739448167291,0.048,96088.0,96073.0,0.15]
[1739448167495,0.156122,96079.0,96075.0,0.15]
[1739448167699,0.048,96088.0,96075.0,0.15]
[1739448167926,0.079,96077.0,96076.0,0.00932]
[1739448168328,0.08381661,96077.0,96076.0,0.00932]
[1739448168539,0.0458,96076.0,96042.0,0.0768]
[1739448168741,0.0458,96076.0,96075.0,0.007]
[1739448168948,0.201926,96076.0,96075.0,0.00932]
[1739448169153,0.156137,96070.0,96064.0,0.15]
[1739448169369,0.0458,96076.0,96064.0,0.15]
[1739448169575,0.201926,96076.0,96069.0,0.156136]
[1739448169928,0.0458,96076.0,96073.0,0.15613]
[1739448170139,0.0458,96076.0,96074.0,0.156128]
[1739448170363,0.0458,96076.0,96075.0,0.156128]
[1739448170561,0.0458,96076.0,96071.0,0.208177]
[1739448170735,0.0458,96076.0,96073.0,0.15613]
[1739448170966,0.156136,96070.0,96069.0,0.006]
[1739448171166,0.156136,96070.0,96040.0,0.32493443]
[1739448171167,0.156152,96061.0,96050.0,0.208224]
[1739448171368,0.156152,96061.0,96047.0,0.15]
[1739448171567,0.24438943,96070.0,96064.0,0.006]
[1739448171568,0.156144,96065.0,96064.0,0.006]
[1739448171770,0.235544,96065.0,96064.0,0.006]
[1739448172131,0.156163,96054.0,96048.0,0.10250365]
[1739448172305,0.156162,96054.0,96048.0,0.10250365]
[1739448172662,0.0794,96065.0,96048.0,0.10250365]
[1739448172663,0.156152,96061.0,96048.0,0.10250365]
[1739448172898,0.0794,96065.0,96048.0,0.10250365]
[1739448173100,0.156157,96057.0,96048.0,0.10250365]
[1739448173470,0.0794,96065.0,96048.0,0.10950365]
[1739448173641,0.156159,96056.0,96048.0,0.10950365]
[1739448174077,0.156153,96060.0,96049.0,0.208227]
[1739448174249,0.156154,96059.0,96050.0,0.156168]
[1739448174591,0.156149,96062.0,96048.0,0.10250365]
[1739448174813,0.287594,96065.0,96048.0,0.31073065]
[1739448174814,0.00484915,96058.0,96048.0,0.31073065]
[1739448175027,0.235544,96065.0,96048.0,0.11450365]
[1739448175179,0.156146,96064.0,96055.0,0.156159]
[1739448175383,0.00484926,96064.0,96053.0,0.00104101]
[1739448175601,0.00484926,96064.0,96061.0,0.15615]
[1739448175801,0.00484926,96064.0,96063.0,0.156147]
[1739448176426,0.0794,96065.0,96064.0,0.156145]
[1739448176817,0.0471,96070.0,96053.0,0.005]
[1739448177017,0.0471,96070.0,96054.0,0.10354455]
[1739448177270,0.00481066,96069.0,96066.0,0.156141]
[1739448178056,0.00481066,96069.0,96065.0,0.156143]
[1739448178479,0.00481066,96069.0,96066.0,0.006]
[1739448178893,0.00481066,96069.0,96066.0,0.165142]
[1739448179101,0.00481066,96069.0,96068.0,0.156139]
[1739448179730,0.208156,96082.0,96066.0,0.211188]
[1739448179731,0.0826,96077.0,96066.0,0.211188]
[1739448179941,0.00482305,96076.0,96066.0,0.003]
[1739448180153,0.00482305,96076.0,96075.0,0.156128]
[1739448180746,0.0826,96077.0,96076.0,0.156126]
[1739448181075,0.08742307,96077.0,96076.0,0.156126]
[1739448181688,0.00482307,96077.0,96076.0,0.156126]
[1739448181879,0.0463,96079.0,96077.0,0.156124]
[1739448182365,0.00482292,96078.0,96075.0,0.160126]
[1739448182567,0.00482292,96078.0,96075.0,0.004]
[1739448182767,0.156124,96077.0,96075.0,0.004]
[1739448183046,0.00484348,96077.0,96076.0,0.156125]
[1739448183459,0.0463,96079.0,96078.0,0.156123]
[1739448184193,0.202421,96079.0,96076.0,0.003]
[1739448184408,0.202421,96079.0,96074.0,0.156129]
[1739448184689,0.202421,96079.0,96078.0,0.003]
[1739448184896,0.0463,96079.0,96068.0,0.156138]
[1739448185166,0.156129,96075.0,96068.0,0.156138]
[1739448185316,0.0463,96079.0,96076.0,0.003]
[1739448185665,0.156124,96077.0,96076.0,0.003]
[1739448186341,0.0463,96079.0,96078.0,0.156123]
[1739448186702,0.3202,96087.0,96085.0,0.156111]
[1739448186909,0.0783901,96088.0,96075.0,0.20817]
[1739448186910,0.0783901,96088.0,96083.0,0.208151]
[1739448187106,0.0001065,96088.0,96085.0,0.156111]
[1739448187900,0.0001065,96088.0,96085.0,0.25965531]
[1739448188105,0.0001065,96088.0,96085.0,0.25861465]
[1739448188319,0.0001065,96088.0,96085.0,0.25961465]
[1739448188493,0.0001065,96088.0,96085.0,0.25861465]
[1739448188941,0.0001065,96088.0,96085.0,0.40861465]
[1739448189095,0.0001065,96088.0,96085.0,0.41161465]
[1739448190353,0.0001065,96088.0,96085.0,0.41761465]
[1739448191997,0.0001065,96088.0,96085.0,0.54221465]
[1739448193903,0.0001065,96088.0,96085.0,0.56521465]
[1739448194527,0.0001065,96088.0,96085.0,0.57521465]
[1739448197395,0.00023874,96086.0,96085.0,0.57521465]
[1739448200206,0.00023874,96086.0,96085.0,0.56921465]
[1739448200381,0.00023874,96086.0,96085.0,0.57321465]
[1739448200927,0.00023874,96086.0,96085.0,0.58021465]
[1739448204889,0.00023874,96086.0,96085.0,0.27261465]
[1739448205908,0.00023874,96086.0,96085.0,0.42261465]
[1739448206791,0.00023874,96086.0,96085.0,0.40861465]
[1739448207129,0.00023874,96086.0,96085.0,0.42261465]
[1739448207376,0.00023874,96086.0,96085.0,0.41561465]
[1739448207580,0.00023874,96086.0,96085.0,0.40861465]
[1739448207753,0.00023874,96086.0,96085.0,0.41561465]
[1739448207979,0.00023874,96086.0,96085.0,0.42161465]
[1739448208976,0.15634874,96086.0,96085.0,0.013]
[1739448209175,0.20164874,96086.0,96085.0,0.013]
[1739448209380,0.05049794,96086.0,96085.0,0.013]
[1739448209585,0.05049794,96086.0,96085.0,0.169111]
[1739448210596,0.05049794,96086.0,96085.0,0.013]
[1739448211591,0.05049794,96086.0,96085.0,0.169111]
[1739448212838,0.05049794,96086.0,96085.0,0.013]
[1739448213190,0.20660794,96086.0,96085.0,0.013]
[1739448213826,0.28430794,96086.0,96085.0,0.013]
[1739448214034,0.28430794,96086.0,96085.0,0.007]
[1739448214236,0.233836,96070.0,96069.0,0.00022365]
[1739448214730,0.23877996,96070.0,96069.0,0.00022365]
[1739448215573,0.23877996,96070.0,96069.0,0.00422365]
[1739448215978,0.28767996,96070.0,96069.0,0.00422365]
[1739448216817,0.13154396,96070.0,96069.0,0.00022365]
[1739448217184,0.05384396,96070.0,96069.0,0.00322365]
[1739448217389,0.00494396,96070.0,96069.0,0.15636065]
[1739448217589,0.0766,96075.0,96069.0,0.00022365]
[1739448217793,0.0481,96080.0,96079.0,0.156121]
[1739448217994,0.0481,96080.0,96069.0,0.1047273]
[1739448218194,0.0481,96080.0,96077.0,0.156123]
[1739448218460,0.0481,96080.0,96075.0,0.208168]
[1739448218879,0.156111,96085.0,96077.0,0.156123]
[1739448219078,0.156113,96084.0,96077.0,0.156123]
[1739448219284,0.08103874,96086.0,96069.0,0.1027273]
[1739448219495,0.001,96075.0,96073.0,0.15613]
[1739448219689,0.001,96075.0,96069.0,0.1027273]
[1739448219918,0.00460871,96074.0,96073.0,0.156131]
[1739448220122,0.156118,96081.0,96074.0,0.156129]
[1739448220558,0.00460883,96080.0,96073.0,0.208174]
[1739448220908,0.08103874,96086.0,96069.0,0.1047273]
[1739448221116,0.00460883,96079.0,96076.0,0.156124]
[1739448221337,0.156115,96083.0,96076.0,0.156124]
[1739448221647,0.28918474,96086.0,96069.0,0.1047273]
[1739448221648,0.08103874,96086.0,96069.0,0.1047273]
[1739448221825,0.00460888,96082.0,96073.0,0.004]
[1739448222024,0.156111,96085.0,96077.0,0.156124]
[1739448222232,0.00457978,96081.0,96077.0,0.156124]
[1739448222395,0.156114,96084.0,96077.0,0.156124]
[1739448222593,0.00457976,96080.0,96078.0,0.156122]
[1739448222807,0.08103874,96086.0,96073.0,0.004]
[1739448223014,0.00023874,96086.0,96085.0,0.156111]
[1739448224172,0.00123874,96086.0,96085.0,0.156111]
[1739448224682,0.00123874,96086.0,96085.0,0.158111]
[1739448225391,0.00023874,96086.0,96085.0,0.158111]
[1739448225595,0.00123874,96086.0,96085.0,0.158111]
[1739448226387,0.00123874,96086.0,96085.0,0.002]
[1739448227925,0.156106,96088.0,96085.0,0.002]
[1739448228353,0.208125,96096.0,96086.0,0.156109]
[1739448228625,0.156096,96095.0,96086.0,0.156109]
[1739448228782,0.156095,96095.0,96087.0,0.156108]
[1739448229155,0.001,96088.0,96087.0,0.156108]
[1739448229678,0.156092,96098.0,96085.0,0.001]
[1739448229892,0.00457994,96088.0,96078.0,0.0808]
[1739448230238,0.00107,96092.0,96091.0,0.156102]
[1739448231364,7e-05,96092.0,96091.0,0.156102]
[1739448231807,7e-05,96092.0,96091.0,0.40860565]
[1739448232018,7e-05,96092.0,96091.0,0.49050565]
[1739448232421,7e-05,96092.0,96091.0,0.49350565]
[1739448233214,7e-05,96092.0,96091.0,0.003]
[1739448233384,7e-05,96092.0,96091.0,0.007]
[1739448233601,7e-05,96092.0,96087.0,0.156107]
[1739448233971,7e-05,96092.0,96091.0,0.007]
[1739448234225,7e-05,96092.0,96087.0,0.156107]
[1739448234445,7e-05,96092.0,96091.0,0.007]
[1739448234723,7e-05,96092.0,96091.0,0.014]
[1739448235164,0.00469718,96092.0,96091.0,0.014]
[1739448235383,7e-05,96092.0,96091.0,0.007]
[1739448235584,0.00469718,96092.0,96091.0,0.007]
[1739448235789,7e-05,96092.0,96087.0,0.001]
[1739448235999,7e-05,96092.0,96090.0,0.156102]
[1739448236171,7e-05,96092.0,96091.0,0.004]
[1739448236385,7e-05,96092.0,96091.0,0.001]
[1739448236619,7e-05,96092.0,96091.0,0.10350365]
[1739448236796,7e-05,96092.0,96091.0,0.10750365]
[1739448236945,7e-05,96092.0,96091.0,0.1085442]
[1739448237699,7e-05,96092.0,96091.0,0.1035442]
[1739448238004,7e-05,96092.0,96091.0,0.10250365]
[1739448238179,7e-05,96092.0,96091.0,0.25250365]
[1739448238801,7e-05,96092.0,96091.0,0.26450365]
[1739448239001,7e-05,96092.0,96091.0,0.25750365]
[1739448239398,7e-05,96092.0,96091.0,0.26450365]
[1739448244388,0.0001765,96092.0,96091.0,0.26450365]
[1739448247028,0.0001765,96092.0,96091.0,0.162]
[1739448249416,0.0001765,96092.0,96091.0,0.318102]
[1739448250165,0.0001765,96092.0,96091.0,0.168102]
[1739448250429,0.0001765,96092.0,96091.0,0.012]
[1739448250932,0.0001765,96092.0,96091.0,0.168102]
[1739448251867,0.0001765,96092.0,96091.0,0.012]
[1739448255976,0.0001765,96092.0,96091.0,0.01222365]
[1739448256884,0.1562765,96092.0,96091.0,0.01222365]
[1739448258664,0.1562765,96092.0,96091.0,0.00722365]
[1739448258878,0.1562765,96092.0,96091.0,0.00822365]
[1739448259940,0.16937268,96092.0,96091.0,0.00822365]
[1739448260137,0.16937268,96092.0,96091.0,0.00122365]
[1739448260483,0.16937268,96092.0,96091.0,0.00022365]
[1739448260685,0.16937268,96092.0,96091.0,0.00322365]
[1739448260819,0.1562765,96092.0,96091.0,0.00322365]
[1739448263328,0.4764765,96092.0,96091.0,0.00322365]
[1739448265013,0.3203765,96092.0,96091.0,0.00322365]
[1739448265962,0.4764765,96092.0,96091.0,0.00322365]
[1739448267063,0.3203765,96092.0,96091.0,0.00322365]
[1739448267571,0.4764765,96092.0,96091.0,0.00322365]